fUSD/lending_fUSD_20240628
["ID","MTS","AMOUNT","RATE_DAILY","PERIOD"]
[330562156,1719574246433,-500.64,0.00019178,2]
[330562157,1719574246443,-1233.76,0.00019178,2]
[330562158,1719574246453,-850.15,0.00019178,2]
[330562159,1719574246464,-151.0,0.00019178,2]
[330562160,1719574246474,-151.0,0.00019178,2]
[330562161,1719574246483,-500.0,0.00019178,2]
[330562162,1719574246494,-160.327623,0.00019178,2]
[330562163,1719574246504,-500.0,0.00019178,2]
[330562164,1719574246514,-806.64,0.00019178,2]
[330562165,1719574246524,-1476.97,0.00019178,2]
[330562166,1719574246536,-546.7,0.00019178,2]
[330562169,1719574246546,-517.98,0.00019178,2]
[330562171,1719574246556,-500.0,0.00019178,2]
[330562175,1719574246566,-151.0,0.00019178,2]
[330562177,1719574246575,-500.0,0.00019178,2]
[330562178,1719574246585,-254.168158,0.00019178,2]
[330562179,1719574246595,-500.0,0.00019178,2]
[330562180,1719574246604,-787.77,0.00019178,2]
[330562181,1719574246615,-500.0,0.00019178,2]
[330562182,1719574246624,-728.78,0.00019178,2]
[330562183,1719574246634,-1226.58,0.00019178,2]
[330562184,1719574246644,-500.0,0.00019178,2]
[330562185,1719574246654,-1245.62,0.00019178,2]
[330562186,1719574246664,-1323.86,0.00019178,2]
[330562187,1719574246674,-500.0,0.00019178,2]
[330562188,1719574246684,-500.0,0.00019178,2]
[330562189,1719574246694,-500.0,0.00019178,2]
[330562190,1719574246704,-994.19,0.00019178,2]
[330562191,1719574246715,-500.0,0.00019178,2]
[330562192,1719574246725,-957.94,0.00019178,2]
[330562193,1719574246736,-1470.84,0.00019178,2]
[330562194,1719574246746,-500.0,0.00019178,2]
[330562195,1719574246756,-1120.06,0.00019178,2]
[330562196,1719574246767,-500.0,0.00019178,2]
[330562197,1719574246777,-500.0,0.00019178,2]
[330562198,1719574246789,-500.0,0.00019178,2]
[330562199,1719574246800,-500.0,0.00019178,2]
[330562200,1719574246814,-500.0,0.00019178,2]
[330562201,1719574246825,-1236.9,0.00019178,2]
[330562202,1719574246836,-500.0,0.00019178,2]
[330562203,1719574246846,-151.0,0.00019178,2]
[330562204,1719574246856,-163.888334,0.00019178,2]
[330562205,1719574246866,-221.61126552,0.00019178,2]
[330562206,1719574246877,-155.398313,0.00019178,2]
[330562207,1719574246887,-696.73,0.00019178,2]
[330562208,1719574246897,-1346.02,0.00019178,2]
[330562209,1719574246909,-1181.52,0.00019178,2]
[330562210,1719574246918,-559.67,0.00019178,2]
[330562211,1719574246928,-500.0,0.00019178,2]
[330562212,1719574246938,-500.0,0.00019178,2]
[330562213,1719574246948,-564.04,0.00019178,2]
[330562214,1719574246959,-500.0,0.00019178,2]
[330562215,1719574246969,-500.0,0.00019178,2]
[330562216,1719574246979,-632.29,0.00019178,2]
[330562217,1719574246990,-500.0,0.00019178,2]
[330562218,1719574247000,-500.0,0.00019178,2]
[330562219,1719574247010,-500.0,0.00019178,2]
[330562220,1719574247021,-794.27,0.00019178,2]
[330562221,1719574247032,-500.0,0.00019178,2]
[330562222,1719574247043,-500.0,0.00019178,2]
[330562223,1719574247053,-587.82,0.00019178,2]
[330562224,1719574247063,-199.68226153,0.00019178,2]
[330562225,1719574247105,-300.31773847,0.00019178,2]
[330562226,1719574247115,-500.0,0.00019178,2]
[330562227,1719574247126,-500.0,0.00019178,2]
[330562228,1719574247138,-893.3,0.00019178,2]
[330562229,1719574247148,-2615.05,0.00019178,2]
[330562230,1719574247158,-687.79,0.00019178,2]
[330562231,1719574247168,-500.0,0.00019178,2]
[330562232,1719574247178,-1137.33,0.00019178,2]
[330562233,1719574247188,-1466.84,0.00019178,2]
[330562234,1719574247198,-500.0,0.00019178,2]
[330562235,1719574247210,-1053.62,0.00019178,2]
[330562236,1719574247220,-500.0,0.00019178,2]
[330562237,1719574247230,-500.0,0.00019178,2]
[330562238,1719574247241,-500.0,0.00019178,2]
[330562239,1719574247250,-500.0,0.00019178,2]
[330562240,1719574247266,-629.27,0.00019178,2]
[330562241,1719574247276,-1036.73,0.00019178,2]
[330562242,1719574247288,-1013.36,0.00019178,2]
[330562243,1719574247298,-500.0,0.00019178,2]
[330562244,1719574247308,-500.0,0.00019178,2]
[330562245,1719574247318,-500.0,0.00019178,2]
[330562246,1719574247328,-597.38,0.00019178,2]
[330562247,1719574247338,-500.0,0.00019178,2]
[330562248,1719574247348,-768.99,0.00019178,2]
[330562249,1719574247359,-228.63247177,0.00019178,2]
[330562250,1719574247369,-479.47374465,0.00019178,2]
[330562251,1719574247379,-1911.35,0.00019178,2]
[330562252,1719574247390,-500.0,0.00019178,2]
[330562253,1719574247400,-500.0,0.00019178,2]
[330562254,1719574247410,-500.0,0.00019178,2]
[330562255,1719574247420,-841.38,0.00019178,2]
[330562256,1719574247431,-500.0,0.00019178,2]
[330562257,1719574247441,-5000.0,0.00019178,2]
[330562258,1719574247451,-500.0,0.00019178,2]
[330562259,1719574247461,-500.0,0.00019178,2]
[330562260,1719574247471,-763.43,0.00019178,2]
[330562261,1719574247481,-379.07055434,0.00019178,2]
[330562262,1719574247500,-635.43944566,0.00019178,2]
[330562263,1719574247509,-174.92543448,0.00019178,2]
[330562264,1719574247522,-759.06456552,0.00019178,2]
[330562265,1719574247532,-1215.91,0.00019178,2]
[330562266,1719574247542,-996.81,0.00019178,2]
[330562267,1719574247552,-500.0,0.00019178,2]
[330562268,1719574247563,-500.0,0.00019178,2]
[330562269,1719574247572,-357.69109334,0.00019178,2]
[330562270,1719574247695,-374.02890666,0.00019178,2]
[330562271,1719574247705,-956.64,0.00019178,2]
[330562272,1719574247716,-500.0,0.00019178,2]
[330562273,1719574247726,-151.0,0.00019178,2]
[330562274,1719574247735,-7504.32,0.00019178,2]
[330562275,1719574247746,-151.0,0.00019178,2]
[330562276,1719574247756,-500.0,0.00019178,2]
[330562277,1719574247766,-500.0,0.00019178,2]
[330562278,1719574247777,-500.0,0.00019178,2]
[330562279,1719574247787,-161.292163,0.00019178,2]
[330562280,1719574247796,-500.0,0.00019178,2]
[330562281,1719574247806,-500.0,0.00019178,2]
[330562282,1719574247816,-500.0,0.00019178,2]
[330562283,1719574247826,-1381.26,0.00019178,2]
[330562284,1719574247836,-901.66,0.00019178,2]
[330562285,1719574247847,-500.0,0.00019178,2]
[330562286,1719574247856,-151.0,0.00019178,2]
[330562287,1719574247866,-151.0,0.00019178,2]
[330562288,1719574247876,-500.0,0.00019178,2]
[330562289,1719574247886,-71.46986267,0.00019178,2]
[330562290,1719574248017,-79.53013733,0.00019178,2]
[330562291,1719574248027,-500.0,0.00019178,2]
[330562292,1719574248037,-500.0,0.00019178,2]
[330562293,1719574248047,-151.0,0.00019178,2]
[330562294,1719574248057,-151.0,0.00019178,2]
[330562295,1719574248067,-500.0,0.00019178,2]
[330562296,1719574248077,-151.0,0.00019178,2]
[330562297,1719574248087,-11.19066579,0.00019178,2]
[330562298,1719574248102,-631.14933421,0.00019178,2]
[330562299,1719574248115,-151.0,0.00019178,2]
[330562300,1719574248128,-151.0,0.00019178,2]
[330562301,1719574248144,-500.0,0.00019178,2]
[330562302,1719574248155,-677.45,0.00019178,2]
[330562303,1719574248164,-181.09510387,0.00019178,2]
[330562304,1719574248175,-500.0,0.00019178,2]
[330562305,1719574248185,-966.1,0.00019178,2]
[330562306,1719574248195,-500.0,0.00019178,2]
[330562307,1719574248207,-500.0,0.00019178,2]
[330562308,1719574248216,-500.0,0.00019178,2]
[330562309,1719574248228,-1052.71,0.00019178,2]
[330562310,1719574248238,-500.0,0.00019178,2]
[330562311,1719574248248,-1258.22,0.00019178,2]
[330562312,1719574248259,-151.0,0.00019178,2]
[330562313,1719574248270,-500.0,0.00019178,2]
[330562314,1719574248279,-151.0,0.00019178,2]
[330562315,1719574248290,-656.38645126,0.00019178,2]
[330562316,1719574248306,-157.41354874,0.00019178,2]
[330562317,1719574248316,-151.0,0.00019178,2]
[330562318,1719574248326,-500.0,0.00019178,2]
[330562319,1719574248336,-151.0,0.00019178,2]
[330562320,1719574248346,-151.0,0.00019178,2]
[330562321,1719574248355,-151.0,0.00019178,2]
[330562322,1719574248365,-290.364323,0.00019178,2]
[330562323,1719574248374,-500.0,0.00019178,2]
[330562324,1719574248383,-500.0,0.00019178,2]
[330562325,1719574248394,-1351.09,0.00019178,2]
[330562326,1719574248404,-524.51,0.00019178,2]
[330562327,1719574248413,-500.0,0.00019178,2]
[330562328,1719574248423,-531.93,0.00019178,2]
[330562329,1719574248432,-712.55,0.00019178,2]
[330562330,1719574248442,-500.0,0.00019178,2]
[330562331,1719574248452,-500.0,0.00019178,2]
[330562332,1719574248462,-765.41,0.00019178,2]
[330562333,1719574248471,-1012.94,0.00019178,2]
[330562334,1719574248482,-1778.01,0.00019178,2]
[330562335,1719574248492,-151.0,0.00019178,2]
[330562336,1719574248502,-151.0,0.00019178,2]
[330562337,1719574248513,-500.0,0.00019178,2]
[330562338,1719574248523,-500.0,0.00019178,2]
[330562339,1719574248533,-151.0,0.00019178,2]
[330562340,1719574248543,-1299.53,0.00019178,2]
[330562341,1719574248552,-151.0,0.00019178,2]
[330562342,1719574248562,-151.0,0.00019178,2]
[330562343,1719574248572,-579.49,0.00019178,2]
[330562344,1719574248582,-151.0,0.00019178,2]
[330562345,1719574248591,-500.0,0.00019178,2]
[330562346,1719574248602,-500.0,0.00019178,2]
[330562347,1719574248611,-500.0,0.00019178,2]
[330562348,1719574248621,-500.0,0.00019178,2]
[330562349,1719574248630,-154.181733,0.00019178,2]
[330562350,1719574248640,-500.0,0.00019178,2]
[330562351,1719574248650,-1413.22,0.00019178,2]
[330562352,1719574248660,-1104.76,0.00019178,2]
[330562353,1719574248669,-500.0,0.00019178,2]
[330562354,1719574248679,-1366.74,0.00019178,2]
[330562355,1719574248689,-500.0,0.00019178,2]
[330562356,1719574248700,-1827.27,0.00019178,2]
[330562357,1719574248709,-1100.92,0.00019178,2]
[330562358,1719574248719,-947.24,0.00019178,2]
[330562359,1719574248729,-500.0,0.00019178,2]
[330562360,1719574248740,-500.0,0.00019178,2]
[330562361,1719574248750,-883.67,0.00019178,2]
[330562362,1719574248760,-582.15,0.00019178,2]
[330562363,1719574248771,-500.0,0.00019178,2]
[330562364,1719574248780,-151.0,0.00019178,2]
[330562365,1719574248791,-170.293554,0.00019178,2]
[330562366,1719574248801,-575.21,0.00019178,2]
[330562367,1719574248813,-941.22,0.00019178,2]
[330562368,1719574248823,-1395.62,0.00019178,2]
[330562369,1719574248834,-500.0,0.00019178,2]
[330562370,1719574248844,-901.26,0.00019178,2]
[330562371,1719574248854,-761.97,0.00019178,2]
[330562372,1719574248864,-500.0,0.00019178,2]
[330562373,1719574248875,-500.0,0.00019178,2]
[330562374,1719574248884,-974.11,0.00019178,2]
[330562375,1719574248894,-500.0,0.00019178,2]
[330562376,1719574248905,-500.0,0.00019178,2]
[330562377,1719574248915,-500.0,0.00019178,2]
[330562378,1719574249316,-500.0,0.00019178,2]
[330562379,1719574249328,-500.0,0.00019178,2]
[330562380,1719574249338,-566.97,0.00019178,2]
[330562381,1719574249356,-500.0,0.00019178,2]
[330562382,1719574249370,-1235.84,0.00019178,2]
[330562383,1719574249380,-500.0,0.00019178,2]
[330562384,1719574249391,-500.0,0.00019178,2]
[330562385,1719574249402,-715.17,0.00019178,2]
[330562386,1719574249413,-620.91,0.00019178,2]
[330562387,1719574249424,-161.370402,0.00019178,2]
[330562388,1719574249435,-500.0,0.00019178,2]
[330562389,1719574249445,-500.0,0.00019178,2]
[330562390,1719574249455,-500.0,0.00019178,2]
[330562391,1719574249466,-199.029035,0.00019178,2]
[330562392,1719574249476,-383.45011862,0.00019178,2]
[330562393,1719574249487,-500.0,0.00019178,2]
[330562394,1719574249498,-500.0,0.00019178,2]
[330562395,1719574249508,-744.87,0.00019178,2]
[330562396,1719574249518,-151.0,0.00019178,2]
[330562397,1719574249529,-823.18,0.00019178,2]
[330562398,1719574249540,-151.0,0.00019178,2]
[330562399,1719574249551,-500.0,0.00019178,2]
[330562400,1719574249563,-263.869325,0.00019178,2]
[330562401,1719574249573,-624.18,0.00019178,2]
[330562402,1719574249584,-500.0,0.00019178,2]
[330562403,1719574249594,-592.86,0.00019178,2]
[330562404,1719574249605,-749.21,0.00019178,2]
[330562405,1719574249615,-500.0,0.00019178,2]
[330562406,1719574249625,-500.0,0.00019178,2]
[330562407,1719574249636,-919.36,0.00019178,2]
[330562408,1719574249646,-1619.02,0.00019178,2]
[330562409,1719574249658,-151.0,0.00019178,2]
[330562410,1719574249669,-973.98,0.00019178,2]
[330562411,1719574249679,-151.0,0.00019178,2]
[330562412,1719574249689,-151.0,0.00019178,2]
[330562413,1719574249699,-151.0,0.00019178,2]
[330562414,1719574249711,-151.0,0.00019178,2]
[330562415,1719574249721,-500.0,0.00019178,2]
[330562416,1719574249732,-151.0,0.00019178,2]
[330562417,1719574249743,-500.0,0.00019178,2]
[330562418,1719574249754,-1208.48,0.00019178,2]
[330562419,1719574249765,-151.0,0.00019178,2]
[330562420,1719574249775,-151.916257,0.00019178,2]
[330562421,1719574249787,-554.06057638,0.00019178,2]
[330562422,1719574249797,-1211.46,0.00019178,2]
[330562423,1719574249807,-500.0,0.00019178,2]
[330562424,1719574249816,-151.0,0.00019178,2]
[330562425,1719574249827,-151.0,0.00019178,2]
[330562426,1719574249837,-151.0,0.00019178,2]
[330562427,1719574249848,-832.79,0.00019178,2]
[330562428,1719574249859,-4899.53,0.00019178,2]
[330562429,1719574249869,-500.0,0.00019178,2]
[330562430,1719574249879,-500.0,0.00019178,2]
[330562431,1719574249890,-3113.57,0.00019178,2]
[330562432,1719574249900,-500.0,0.00019178,2]
[330562433,1719574249911,-151.0,0.00019178,2]
[330562434,1719574249921,-151.0,0.00019178,2]
[330562435,1719574249931,-151.0,0.00019178,2]
[330562436,1719574249942,-151.549259,0.00019178,2]
[330562437,1719574249952,-500.0,0.00019178,2]
[330562438,1719574249962,-599.27,0.00019178,2]
[330562439,1719574249972,-500.0,0.00019178,2]
[330562440,1719574249983,-500.0,0.00019178,2]
[330562441,1719574249993,-504.52,0.00019178,2]
[330562442,1719574250003,-620.81,0.00019178,2]
[330562443,1719574250013,-500.0,0.00019178,2]
[330562444,1719574250023,-1262.49,0.00019178,2]
[330562445,1719574250034,-500.0,0.00019178,2]
[330562446,1719574250045,-500.0,0.00019178,2]
[330562447,1719574250055,-500.0,0.00019178,2]
[330562448,1719574250069,-500.0,0.00019178,2]
[330562449,1719574250079,-735.32,0.00019178,2]
[330562450,1719574250089,-894.63,0.00019178,2]
[330562451,1719574250099,-2466.43,0.00019178,2]
[330562452,1719574250110,-832.7,0.00019178,2]
[330562453,1719574250120,-500.0,0.00019178,2]
[330562454,1719574250135,-500.0,0.00019178,2]
[330562455,1719574250145,-500.0,0.00019178,2]
[330562456,1719574250155,-500.0,0.00019178,2]
[330562457,1719574250166,-656.37,0.00019178,2]
[330562458,1719574250178,-796.33,0.00019178,2]
[330562459,1719574250188,-500.0,0.00019178,2]
[330562460,1719574250198,-500.0,0.00019178,2]
[330562461,1719574250213,-1393.09,0.00019178,2]
[330562462,1719574250225,-500.0,0.00019178,2]
[330562463,1719574250236,-500.0,0.00019178,2]
[330562464,1719574250246,-500.0,0.00019178,2]
[330562465,1719574250256,-151.0,0.00019178,2]
[330562466,1719574250266,-500.0,0.00019178,2]
[330562467,1719574250277,-151.0,0.00019178,2]
[330562468,1719574250288,-500.0,0.00019178,2]
[330562469,1719574250298,-151.0,0.00019178,2]
[330562470,1719574250308,-151.0,0.00019178,2]
[330562471,1719574250318,-500.0,0.00019178,2]
[330562472,1719574250328,-151.0,0.00019178,2]
[330562473,1719574250339,-151.0,0.00019178,2]
[330562474,1719574250349,-151.0,0.00019178,2]
[330562475,1719574250359,-151.0,0.00019178,2]
[330562476,1719574250369,-151.0,0.00019178,2]
[330562477,1719574250380,-637.94,0.00019178,2]
[330562478,1719574250390,-151.0,0.00019178,2]
[330562479,1719574250400,-695.18,0.00019178,2]
[330562480,1719574250410,-151.0,0.00019178,2]
[330562481,1719574250420,-500.0,0.00019178,2]
[330562482,1719574250430,-151.0,0.00019178,2]
[330562483,1719574250441,-151.0,0.00019178,2]
[330562484,1719574250451,-521.23,0.00019178,2]
[330562485,1719574250461,-500.0,0.00019178,2]
[330562486,1719574250471,-500.0,0.00019178,2]
[330562487,1719574250481,-500.0,0.00019178,2]
[330562488,1719574250492,-1126.71,0.00019178,2]
[330562489,1719574250502,-1338.86,0.00019178,2]
[330562490,1719574250512,-500.0,0.00019178,2]
[330562491,1719574250523,-500.0,0.00019178,2]
[330562492,1719574250533,-1225.9,0.00019178,2]
[330562493,1719574250543,-500.0,0.00019178,2]
[330562494,1719574250553,-3969.89,0.00019178,2]
[330562495,1719574250563,-500.0,0.00019178,2]
[330562496,1719574250573,-21517.66,0.00019178,2]
[330562497,1719574250583,-1048.05,0.00019178,2]
[330562498,1719574250594,-2593.04,0.00019178,2]
[330562499,1719574250604,-500.0,0.00019178,2]
[330562500,1719574250614,-500.0,0.00019178,2]
[330562501,1719574250624,-500.0,0.00019178,2]
[330562502,1719574250634,-724.85,0.00019178,2]
[330562503,1719574250645,-500.0,0.00019178,2]
[330562504,1719574250656,-500.0,0.00019178,2]
[330562505,1719574250666,-500.0,0.00019178,2]
[330562506,1719574250676,-1118.96,0.00019178,2]
[330562507,1719574250687,-500.0,0.00019178,2]
[330562508,1719574250697,-500.0,0.00019178,2]
[330562509,1719574250708,-554.44,0.00019178,2]
[330562510,1719574250720,-761.56,0.00019178,2]
[330562511,1719574250731,-720.88,0.00019178,2]
[330562512,1719574250742,-500.0,0.00019178,2]
[330562513,1719574250753,-155.776459,0.00019178,2]
[330562514,1719574250763,-500.0,0.00019178,2]
[330562515,1719574250773,-970.13,0.00019178,2]
[330562516,1719574250787,-500.0,0.00019178,2]
[330562517,1719574250798,-500.0,0.00019178,2]
[330562518,1719574250809,-1476.95,0.00019178,2]
[330562519,1719574250820,-500.0,0.00019178,2]
[330562520,1719574250831,-1717.45,0.00019178,2]
[330562521,1719574250841,-500.0,0.00019178,2]
[330562522,1719574250852,-729.2,0.00019178,2]
[330562523,1719574250862,-500.0,0.00019178,2]
[330562524,1719574250873,-500.0,0.00019178,2]
[330562525,1719574250883,-500.0,0.00019178,2]
[330562526,1719574250894,-500.0,0.00019178,2]
[330562527,1719574250904,-500.0,0.00019178,2]
[330562528,1719574250916,-500.0,0.00019178,2]
[330562529,1719574250927,-500.0,0.00019178,2]
[330562530,1719574250939,-500.0,0.00019178,2]
[330562531,1719574250949,-500.0,0.00019178,2]
[330562532,1719574250960,-1117.6,0.00019178,2]
[330562533,1719574250970,-500.0,0.00019178,2]
[330562534,1719574250981,-500.0,0.00019178,2]
[330562535,1719574250991,-500.0,0.00019178,2]
[330562536,1719574251002,-500.0,0.00019178,2]
[330562537,1719574251012,-2702.42,0.00019178,2]
[330562538,1719574251022,-151.0,0.00019178,2]
[330562539,1719574251032,-500.0,0.00019178,2]
[330562540,1719574251043,-151.0,0.00019178,2]
[330562541,1719574251053,-548.98538488,0.00019178,2]
[330562542,1719574251063,-3062.01,0.00019178,2]
[330562543,1719574251072,-151.0,0.00019178,2]
[330562544,1719574251082,-151.0,0.00019178,2]
[330562545,1719574251092,-603.71560711,0.00019178,2]
[330562546,1719574251102,-500.0,0.00019178,2]
[330562547,1719574251112,-500.0,0.00019178,2]
[330562548,1719574251122,-500.0,0.00019178,2]
[330562549,1719574251137,-966.05,0.00019178,2]
[330562550,1719574251147,-500.0,0.00019178,2]
[330562551,1719574251156,-500.0,0.00019178,2]
[330562552,1719574251166,-2651.61,0.00019178,2]
[330562553,1719574251178,-899.7,0.00019178,2]
[330562554,1719574251188,-634.11,0.00019178,2]
[330562555,1719574251198,-500.0,0.00019178,2]
[330562556,1719574251211,-500.0,0.00019178,2]
[330562557,1719574251221,-500.0,0.00019178,2]
[330562558,1719574251232,-500.0,0.00019178,2]
[330562559,1719574251242,-599.13192019,0.00019178,2]
[330562560,1719574251253,-500.0,0.00019178,2]
[330562561,1719574251263,-500.0,0.00019178,2]
[330562562,1719574251273,-500.0,0.00019178,2]
[330562563,1719574251283,-500.0,0.00019178,2]
[330562564,1719574251294,-500.0,0.00019178,2]
[330562565,1719574251304,-500.0,0.00019178,2]
[330562566,1719574251315,-500.0,0.00019178,2]
[330562567,1719574251326,-500.0,0.00019178,2]
[330562568,1719574251336,-500.0,0.00019178,2]
[330562569,1719574251346,-500.0,0.00019178,2]
[330562570,1719574251356,-151.0,0.00019178,2]
[330562571,1719574251366,-500.0,0.00019178,2]
[330562572,1719574251376,-151.0,0.00019178,2]
[330562573,1719574251387,-151.0,0.00019178,2]
[330562574,1719574251397,-151.0,0.00019178,2]
[330562575,1719574251407,-151.0,0.00019178,2]
[330562576,1719574251417,-151.0,0.00019178,2]
[330562577,1719574251430,-151.0,0.00019178,2]
[330562578,1719574251439,-500.0,0.00019178,2]
[330562579,1719574251450,-151.0,0.00019178,2]
[330562580,1719574251460,-500.0,0.00019178,2]
[330562581,1719574251469,-151.0,0.00019178,2]
[330562582,1719574251480,-867.21,0.00019178,2]
[330562583,1719574251491,-151.0,0.00019178,2]
[330562584,1719574251501,-151.0,0.00019178,2]
[330562585,1719574251511,-3580.68,0.00019178,2]
[330562586,1719574251521,-228.568,0.00019178,2]
[330562587,1719574251532,-500.0,0.00019178,2]
[330562588,1719574251543,-179.904445,0.00019178,2]
[330562589,1719574251553,-179.904445,0.00019178,2]
[330562590,1719574251563,-500.0,0.00019178,2]
[330562591,1719574251573,-1116.08,0.00019178,2]
[330562592,1719574251583,-179.904445,0.00019178,2]
[330562593,1719574251593,-1020.26,0.00019178,2]
[330562594,1719574251603,-179.904445,0.00019178,2]
[330562595,1719574251613,-500.0,0.00019178,2]
[330562596,1719574251623,-2252.68,0.00019178,2]
[330562597,1719574251633,-500.0,0.00019178,2]
[330562598,1719574251643,-500.0,0.00019178,2]
[330562599,1719574251653,-500.0,0.00019178,2]
[330562600,1719574251663,-500.0,0.00019178,2]
[330562601,1719574251672,-500.0,0.00019178,2]
[330562602,1719574251682,-179.904445,0.00019178,2]
[330562603,1719574251692,-179.904445,0.00019178,2]
[330562604,1719574251702,-179.904445,0.00019178,2]
[330562605,1719574251712,-1975.88,0.00019178,2]
[330562606,1719574251722,-626.04,0.00019178,2]
[330562607,1719574251731,-179.904445,0.00019178,2]
[330562608,1719574251741,-500.0,0.00019178,2]
[330562609,1719574251751,-179.904445,0.00019178,2]
[330562610,1719574251760,-179.904445,0.00019178,2]
[330562611,1719574251770,-179.904445,0.00019178,2]
[330562612,1719574251780,-179.904445,0.00019178,2]
[330562613,1719574251791,-179.904445,0.00019178,2]
[330562614,1719574251800,-179.904445,0.00019178,2]
[330562615,1719574251810,-500.0,0.00019178,2]
[330562616,1719574251947,-500.0,0.00019178,2]
[330562617,1719574251957,-179.904445,0.00019178,2]
[330562618,1719574251967,-500.0,0.00019178,2]
[330562619,1719574251976,-179.904445,0.00019178,2]
[330562620,1719574251986,-889.82,0.00019178,2]
[330562621,1719574251995,-500.0,0.00019178,2]
[330562622,1719574252005,-179.904445,0.00019178,2]
[330562623,1719574252014,-500.0,0.00019178,2]
[330562624,1719574252024,-183.606319,0.00019178,2]
[330562625,1719574252033,-1551.69,0.00019178,2]
[330562626,1719574252043,-179.904445,0.00019178,2]
[330562627,1719574252053,-183.606319,0.00019178,2]
[330562628,1719574252062,-179.904445,0.00019178,2]
[330562629,1719574252072,-1116.45,0.00019178,2]
[330562630,1719574252082,-183.606319,0.00019178,2]
[330562631,1719574252091,-183.606319,0.00019178,2]
[330562632,1719574252101,-500.0,0.00019178,2]
[330562633,1719574252110,-183.606319,0.00019178,2]
[330562634,1719574252120,-179.904437,0.00019178,2]
[330562635,1719574252134,-183.606319,0.00019178,2]
[330562636,1719574252143,-500.0,0.00019178,2]
[330562637,1719574252153,-912.63,0.00019178,2]
[330562638,1719574252162,-183.606319,0.00019178,2]
[330562639,1719574252173,-183.606319,0.00019178,2]
[330562640,1719574252183,-183.606319,0.00019178,2]
[330562641,1719574252193,-183.606319,0.00019178,2]
[330562642,1719574252204,-183.606319,0.00019178,2]
[330562643,1719574252213,-183.606319,0.00019178,2]
[330562644,1719574252223,-500.0,0.00019178,2]
[330562645,1719574252234,-183.606319,0.00019178,2]
[330562646,1719574252243,-151.0,0.00019178,2]
[330562647,1719574252253,-183.606319,0.00019178,2]
[330562648,1719574252263,-151.0,0.00019178,2]
[330562649,1719574252273,-183.606319,0.00019178,2]
[330562650,1719574252284,-151.0,0.00019178,2]
[330562651,1719574252296,-183.606319,0.00019178,2]
[330562652,1719574252307,-151.0,0.00019178,2]
[330562653,1719574252317,-183.606319,0.00019178,2]
[330562654,1719574252328,-215.694772,0.00019178,2]
[330562655,1719574252340,-183.606323,0.00019178,2]
[330562656,1719574252351,-500.0,0.00019178,2]
[330562657,1719574252362,-500.0,0.00019178,2]
[330562658,1719574252372,-500.0,0.00019178,2]
[330562659,1719574252383,-728.19,0.00019178,2]
[330562660,1719574252394,-1162.4,0.00019178,2]
[330562661,1719574252404,-3400.86,0.00019178,2]
[330562662,1719574252415,-1074.65,0.00019178,2]